Cogmind - Beta 16 @@@ ROGUE MODE // 2025.12.07 @ 22:31:41 Player: throbalt Result: Destroyed by Y-45 Defender with Beam Rifle Performance ------------- Evolutions (2) 1000 Regions Visited (3) 600 Robots Destroyed (21) 105 Value Destroyed (623) 623 Prototype IDs (0) 0 Alien Tech Used (0) 0 Bonus (0) 0 TOTAL SCORE: 2328 Bonus ------- None Cogmind --------- Core Integrity 0/550 Matter 201/300 Energy 100/100 System Corruption 0% Temperature Cool (9) Movement Core (350) Ox6 Location -8/Materials Parts ------- > --- POWER (2) -------- (None) > --- PROPULSION (3) --- (None) > --- UTILITY (4) ------ Large Storage Unit Advanced Targeting Computer > --- WEAPON (2) ------- (None) > --- INVENTORY (15) --- Heat Sink Small Storage Unit Improved Signal Interpreter Medium Armor Plating Peak State ------------ > --- POWER ------------ Light Ion Engine Improved Ion Engine > --- PROPULSION ------- VSS Leg VSS Leg VSS Leg > --- UTILITY ---------- Visual Processing Unit Medium Armor Plating > --- WEAPON ----------- Beam Rifle Heavy Particle Cannon > --- INVENTORY -------- Heat Sink Improved Signal Interpreter Medium Armor Plating Heavy Particle Cannon Assault Rifle [Rating: 22] Favorites ----------- Power Improved Ion Engine Engine Improved Ion Engine Propulsion VSS Leg Leg VSS Leg Hover Unit Hover Unit Flight Unit Flight Unit Utility Large Storage Unit Storage Large Storage Unit Processor Visual Processing Unit Protection Core Shielding Weapon Assault Rifle Energy Gun Beam Rifle Energy Cannon Heavy Particle Cannon Ballistic Gun Assault Rifle Ballistic Cannon Light Cannon Build | -11 -10 -9 -8 ------- Run | Yrd Mat Mat Mat Slots Evolved 4 | . . 2 2 Power 1 | . . 1 . Propulsion 1 | . . 1 . Utility 2 | . . . 2 Weapon . | . . . . Parts Attached 33 | 4 5 23 1 Power 6 | . 2 4 . Engine 6 | . 2 4 . Core . | . . . . Reactor . | . . . . Propulsion 10 | 2 . 8 . Treads . | . . . . Leg 6 | 2 . 4 . Wheel . | . . . . Hover 1 | . . 1 . Flight 3 | . . 3 . Utility 7 | . 2 4 1 Device . | . . . . Storage 1 | . . 1 . Processor 2 | . 1 . 1 Hackware . | . . . . Protection 4 | . 1 3 . Artifact . | . . . . Weapon 10 | 2 1 7 . Energy Gun 4 | 1 . 3 . Energy Cannon 1 | . . 1 . Ballistic Gun 4 | 1 . 3 . Ballistic Cannon 1 | . 1 . . Launcher . | . . . . Special Weapon . | . . . . Impact Weapon . | . . . . Slashing Weapon . | . . . . Piercing Weapon . | . . . . Special Melee Weapon . | . . . . Unidentified Prototypes . | . . . . Parts Lost 17 | . 1 14 2 Power 5 | . 1 4 . Propulsion 3 | . . 3 . Utility 3 | . . 2 1 Weapon 6 | . . 5 1 Highest Loss Streak 9 | . 1 9 1 To Critical Strikes . | . . . . Average Backups 3 | . 2 4 4 Power . | . . . . Propulsion . | . 1 . . Utility 2 | . . 3 4 Weapon . | . . . . Tool/Special . | . . . . Unused Backups 6 | . . 2 4 Power . | . . . . Propulsion . | . . . . Utility 5 | . . 1 4 Weapon 1 | . . 1 . Tool/Special . | . . . . Average Slot Usage (%) 74 | . 87 91 30 Engine 12 | . 8 19 . Leg 19 | . 28 27 . Flight 1 | . . 2 . Storage 5 | . . 5 9 Processor 6 | . 9 5 7 Protection 9 | . 11 10 7 Energy Gun 7 | . 11 6 7 Energy Cannon 3 | . . 5 . Ballistic Gun 5 | . 14 5 . Ballistic Cannon 1 | . 1 1 . Peak Build Rating 22 | 4 8 22 6 Average Rating 11 | 2 6 16 5 On Entrance 3 | . 4 8 3 Avg Prop Armor Cover (%) 6 | . . 6 . Naked Turns . | . . . . Heaviest Build 48 | 4 9 48 22 Greatest Support 36 | 20 20 36 3 Greatest Overweight (x) 8 | . . 8 7 Average Overweight (x) 1 | . . . 6 Largest Inventory Capacity 15 | 5 5 15 15 Average Capacity 10 | 5 5 9 15 Most Carried 7 | 1 4 7 4 Average Carried 3 | . 2 4 4 Final Capacity 15 | 5 5 15 15 Final Carried 4 | 1 4 4 4 Class Distribution -------------------- 76% | Mutant 23% | Scavenger-Mutant Dominant Class ---------------- Mutant | -10/Materials Mutant | -9/Materials Mutant | -8/Materials Resources | -11 -10 -9 -8 ----------- Run | Yrd Mat Mat Mat Matter Collected 640 | 246 72 322 . Remotely . | . . . . Salvage Created 733 | 46 199 488 . Parts 49 | 2 15 32 . Haulers Intercepted . | . . . . Recyclers Shooed 1 | . 1 . . Parts Field Recycled . | . . . . Retrieved Matter . | . . . . Parts Self-Destructed . | . . . . Prevented . | . . . . Parts Restored . | . . . . Kills | -11 -10 -9 -8 ------- Run | Yrd Mat Mat Mat Combat Hostiles Destroyed 19 | 1 6 12 . Guns 13 | 1 5 7 . Cannons 5 | . . 5 . AOE 1 | . 1 . . Classes Destroyed 5 | 1 2 2 . Tunneler 1 | . . 1 . Watcher 1 | . 1 . . Swarmer 6 | . 3 3 . Grunt 8 | 1 3 4 . Sentry 5 | . . 5 . Best Kill Streak 4 | 1 4 3 . Combat Bots Only 3 | 1 3 3 . Max Kills in Single Turn 1 | 1 1 1 . Gunslinging . | . . . . Exploded 1 | . 1 . . Melee . | . . . . Uniques/NPCs Destroyed . | . . . . Combat | -11 -10 -9 -8 -------- Run | Yrd Mat Mat Mat Hostile Shots Fired 318 | 3 35 215 65 Missed 76 | 2 8 55 11 Hits 242 | 1 27 160 54 Projectile 242 | 1 27 160 54 Critical Strikes 10 | . 1 7 2 Actively Blocked 2 | . 1 1 . Damage Taken 2922 | 12 214 1917 779 Core 954 | . 76 328 550 Absorbed by Shields . | . . . . Redirected to Shielding 101 | . 12 77 12 Core Remaining (%) 62 | 100 69 18 . Volleys Fired 82 | 2 14 66 . Largest 2 | 2 2 2 . Hottest 131 | 60 60 131 . Shots Fired 126 | 4 28 94 . Gun 93 | 4 28 61 . Cannon 33 | . . 33 . Launcher . | . . . . Special . | . . . . Kinetic 61 | 2 14 45 . Thermal 49 | . . 49 . Explosive . | . . . . Electromagnetic 16 | 2 14 . . Robot Hit Streak 7 | 2 7 6 . Robot Miss Streak 5 | 2 5 3 . Penetration Max . | . . . . Secondary Targets 1 | . 1 . . Max Gunslinging Chain 1 | . 1 . . Shots Hit Robots 72 | 2 16 54 . Core Hits 30 | 1 9 19 1 Critical Kills . | . . . . Critical Parts Destroyed . | . . . . Critical Strikes 1 | . . 1 . Blast 1 | . . 1 . Melee Attacks . | . . . . Impact . | . . . . Slashing . | . . . . Piercing . | . . . . Sneak Attacks . | . . . . Combat Hostiles . | . . . . Follow-up Attacks . | . . . . Damage Inflicted 1401 | 28 266 1104 3 Guns 753 | 28 192 533 . Cannons 562 | . . 562 . Explosions 71 | . 71 . . Melee . | . . . . Ramming 15 | . 3 9 3 Kinetic 610 | 13 97 500 . Thermal 666 | . 71 595 . Explosive . | . . . . Electromagnetic 110 | 15 95 . . Impact . | . . . . Slashing . | . . . . Piercing . | . . . . Highest Corruption . | . . . . Average Corruption . | . . . . Corruption Purged . | . . . . Corruption Blocked . | . . . . Overload Shots . | . . . . Overflow Damage 34 | . . 34 . Projectiles 34 | . . 34 . Explosions . | . . . . Melee . | . . . . Knockbacks 2 | . . 2 . Impact . | . . . . Kinetic 1 | . . 1 . Secondary 1 | . . 1 . Self-Inflicted Damage 1 | . . . 1 Shots . | . . . . Rammed 1 | . . . 1 Targets Rammed 4 | . 1 2 1 Kicked 3 | . 1 2 . Crushed . | . . . . Highest Temperature 443 | . 24 443 . Average Temperature 159 | . 12 167 . Received Heat Transfer 1125 | 6 24 816 279 Effects 15 | . . 15 . Shutdowns 5 | . . 5 . Energy Bleed 1 | . . 1 . Interference 4 | . . 4 . Matter Decay 2 | . . 2 . Short Circuit 1 | . . 1 . Damage (minor) 2 | . . 2 . Siege Activations . | . . . . Martial Activations . | . . . . Shielding Activations . | . . . . Robots Disrupted . | . . . . Combat Hostiles . | . . . . Robots Corrupted . | . . . . Combat Hostiles . | . . . . Parts Fried . | . . . . Impact Corruptions . | . . . . Robots Melted . | . . . . Combat Hostiles . | . . . . Parts Melted . | . . . . Heat Transferred 1136 | . 100 1036 . Parts Sabotaged . | . . . . Parts Stolen . | . . . . Parts Stripped . | . . . . Power Chain Reactions 1 | . 1 . . Alert | -11 -10 -9 -8 ------- Run | Yrd Mat Mat Mat Maximum Alert Level . | . . . . Low Security (%) 100 | 100 100 100 100 Level 1 . | . . . . Level 2 . | . . . . Level 3 . | . . . . Level 4 . | . . . . Level 5 . | . . . . High Security . | . . . . Max Security . | . . . . Peak Influence 135 | 20 135 99 . Initial 39 | . 13 39 . Average 28 | 3 69 33 . Influence Increases 614 | 20 197 397 . Destroy 0b10 Robot/C 380 | 20 120 240 . Destroy 0b10 Robot/NC 10 | . 5 5 . Destroy Leader 112 | . 22 90 . Successful Hack 2 | . 2 . . Disable Machine 45 | . 45 . . Destroy Structure 5 | . 3 2 . Partial Spotted 15 | . . 15 . Lose Combat Pursuer 45 | . . 45 . Influence Decreases 614 | . 122 492 . Entered New Map 63 | . 7 56 . Time Decay 418 | . 105 313 . Lost Part 133 | . 10 123 . Squads Dispatched 7 | . 2 5 . Investigation 3 | . 1 2 . Extermination . | . . . . Reinforcement 4 | . 1 3 . Assault . | . . . . Garrison . | . . . . Intercept . | . . . . Searches Triggered . | . . . . Construction Impeded . | . . . . Haulers Reinforced . | . . . . Active Scanning Responses . | . . . . Cargo Convoy Interrupts . | . . . . Stealth | -11 -10 -9 -8 --------- Run | Yrd Mat Mat Mat Distress Signals 1 | . . 1 . Communications Jammed . | . . . . Distress Signals . | . . . . Times Spotted 39 | 1 10 26 2 Peak Tracking Total 6 | 1 4 6 2 Tactical Retreats 2 | . . 2 . Traps | -11 -10 -9 -8 ------- Run | Yrd Mat Mat Mat Traps Triggered 1 | . . 1 . Indirectly . | . . . . Trap Hack Attempts . | . . . . Triggered . | . . . . Disarmed . | . . . . Reprogrammed . | . . . . Reused . | . . . . Traps Extracted . | . . . . Installed . | . . . . Triggered . | . . . . Machines | -11 -10 -9 -8 ---------- Run | Yrd Mat Mat Mat Machines Disabled 3 | . 3 . . Max in Single Turn 1 | . 1 . . Machines Repaired . | . . . . Machines Dismantled . | . . . . Machines Sabotaged . | . . . . Overloaded Fab Kills . | . . . . Hacking | -11 -10 -9 -8 --------- Run | Yrd Mat Mat Mat Machines Accessed 4 | . 1 3 . Terminals 2 | . 1 1 . Fabricators . | . . . . Repair Stations . | . . . . Recycling Units 1 | . . 1 . Scanalyzers 1 | . . 1 . Garrison Access . | . . . . Total Hacks 7 | . 3 4 . Successful 6 | . 3 3 . Failed 1 | . . 1 . Catastrophic . | . . . . Database Lockouts . | . . . . Manual 1 | . . 1 . Terminals 4 | . 3 1 . Fabricators . | . . . . Repair Stations . | . . . . Recycling Units 1 | . . 1 . Scanalyzers 2 | . . 2 . Garrison Access . | . . . . Terminal Hacks 4 | . 3 1 . Record 3 | . 3 . . Locate Traps 1 | . . 1 . Fabricator Hacks . | . . . . Repair Station Hacks . | . . . . Recycling Unit Hacks . | . . . . Scanalyzer 2 | . . 2 . Insert Component 1 | . . 1 . Analyze 1 | . . 1 . Garrison Access Hacks . | . . . . Unauthorized Hacks . | . . . . Terminals . | . . . . Fabricators . | . . . . Repair Stations . | . . . . Recycling Units . | . . . . Scanalyzers . | . . . . Garrison Access . | . . . . Data Cores Recovered . | . . . . Used . | . . . . Hacking Detections 2 | . 1 1 . Full Trace Events 1 | . 1 . . Feedback Events . | . . . . Feedback Blocked . | . . . . Robot Schematics Acquired . | . . . . Robots Built . | . . . . Authchips . | . . . . Time . | . . . . Total Robot Build Rating . | . . . . Part Schematics Acquired 1 | . . 1 . Parts Built . | . . . . Authchips . | . . . . Time . | . . . . Total Part Build Rating . | . . . . Part Studies Acquired . | . . . . Parts Repaired . | . . . . Time . | . . . . Parts Recycled . | . . . . Recycled Matter . | . . . . Retrieved Matter . | . . . . Retrieved Components . | . . . . Parts Scanalyzed 1 | . . 1 . Part Schematics Acquired 1 | . . 1 . Parts Damaged 1 | . . 1 . Bothacking | -11 -10 -9 -8 ------------ Run | Yrd Mat Mat Mat Used RIF Installer . | . . . . Robots Hacked . | . . . . Non-combat . | . . . . Combat . | . . . . Robot Hacks Applied . | . . . . Relay Couplers Released . | . . . . Fabnet Peak Effective % . | . . . . Robots Rewired . | . . . . Allies Hacked . | . . . . Hacks Repelled . | . . . . Allies | -11 -10 -9 -8 -------- Run | Yrd Mat Mat Mat Total Allies . | . . . . Largest Group . | . . . . Highest-Rated Group . | . . . . Highest-Rated Ally . | . . . . Total Orders . | . . . . Ally Attacks . | . . . . Total Damage . | . . . . Kills . | . . . . Allies Corrupted . | . . . . Allies Melted . | . . . . Intel | -11 -10 -9 -8 ------- Run | Yrd Mat Mat Mat Active Infowar (turns) 612 | . 172 440 . Optics 612 | . 172 440 . Robot Analysis Total . | . . . . Derelict Logs Recovered . | . . . . Drone Launches . | . . . . Drone Recoveries . | . . . . Exploration | -11 -10 -9 -8 ------------- Run | Yrd Mat Mat Mat Turns Passed 1610 | 99 243 870 398 Spaces Moved 841 | 94 157 489 101 Core 148 | 37 . 10 101 Treads . | . . . . Legs 640 | 57 157 426 . Wheels . | . . . . Hover . | . . . . Flight 53 | . . 53 . Fastest Speed 50 | 50 120 90 350 Average Speed 155 | 92 120 131 389 Slowest Speed 450 | 120 120 450 400 Overloaded Moves . | . . . . Propulsion Burnouts . | . . . . Robots Hopped . | . . . . Potential Cave-ins . | . . . . Cave-ins Triggered . | . . . . Exploration Rate (%) 21 | 7 34 33 13 Regions Visited 3 Branch Regions . Pre-discovered Areas . | . . . . Known Exits Taken . | . . . . Unknown Exits Taken 3 | 1 1 1 . Scrap Searched . | . . . . Spaces Dug . | . . . . Terrain Destroyed 5 | . 3 2 . Melee . | . . . . Projectile 2 | . . 2 . AOE 3 | . 3 . . Terrain Rammed . | . . . . Walls Destroyed . | . . . . Machines Disabled . | . . . . Actions | -11 -10 -9 -8 --------- Run | Yrd Mat Mat Mat Total 1015 | 100 182 630 103 Wait 3 | . . 3 . Move 838 | 93 156 488 101 Hop . | . . . . Pick Up 11 | 1 2 8 . Fast Attach 30 | 4 6 19 1 Attach 11 | . . 11 . Detach 19 | . 2 17 . Swap . | . . . . Drop 17 | . 1 16 . Fire 82 | 2 14 66 . Melee . | . . . . Ram 1 | . . . 1 Kick 3 | . 1 2 . Crush . | . . . . Escape Stasis . | . . . . Rewire . | . . . . Trap . | . . . . Miscellaneous . | . . . . Route ------- -11/Scrapyard -10/Materials -9/Materials (discovered 2 exits: [*Mat] / [*Sto]) -8/Materials History --------- Turn | Location | Event 2 | -11/Scrapyard | Met Revision 17 72 | -11/Scrapyard | Discovered new exit (range 8) 100 | -11/Scrapyard | Entered Materials 286 | -10/Materials | Discovered new exit (range 15) 311 | -10/Materials | Build established: Mutant 343 | -10/Materials | Entered another Materials area 343 | -9/Materials | Evolved 2 slots: Power x1, Propulsion x1 727 | -9/Materials | Build established: Scavenger-Mutant 892 | -9/Materials | Discovered new exit (range 16) 962 | -9/Materials | Lost 3 parts (1u2w) 1096 | -9/Materials | Discovered new exit (range 15) 1127 | -9/Materials | Core integrity fell below 50% 1190 | -9/Materials | Build established: Mutant 1201 | -9/Materials | Lost 9 parts (3p3n3w) 1211 | -9/Materials | Core integrity fell below 20% 1213 | -9/Materials | Entered another Materials area 1213 | -8/Materials | Evolved 2 slots: Utility x2 1587 | -8/Materials | Core integrity fell below 50% 1603 | -8/Materials | Core integrity fell below 20% 1611 | -8/Materials | Destroyed by Y-45 Defender with Beam Rifle Last Messages --------------- K-01 Serf collects debris. R-06 Scavenger collects Aluminum Leg. K-01 Serf collects debris. R-06 Scavenger collects Ion Engine. R-06 Scavenger collects Heat Sink. R-06 Scavenger collects Lgt. Treads. K-01 Serf collects debris. Ion Engine destroyed. K-01 Serf collects debris. Acquired Sml. Laser. K-01 Serf collects debris. PARAMETERS=UTILITY+2 LOCATION=UNKNOWN GOAL=ESCAPE Acquired Adv. Targeting Computer. K-01 Serf collects debris. Core Shielding destroyed. Sml. Laser destroyed. Critical hit (Burn: +37). Slammed into Y-45 Defender. Map ----- +----------------------------------------------------+ | ??????????????????# # # | | ???????????###????# ############## | | ??????????## ??# #????????????? | | ??????????# # #????????????? | | ???????????# + #????????????? | | ???????????# =! # #????????????? | | ???????????# =??# ###########??? | | ???????????# ????# # #??? | | ???????????#??????# # #??? | | ??????????????????# # #??? | | ??????????????????# # #??? | | ??????????????????# / #??? | | ??????????? # #??? | | ??????? # #??? | | ??????? # #??? | | ??????##+###########+#####/######??? | | ??????????????????? ???# #???????? | | ??????????????????? ???# #???????? | | ?????????????????? ???# #???????? | | ??????????????????"" ""??# #???????? | | ??????????????????"" ""??# #???????? | | ?????????????????""" ""??# #???????? | | ??????????????????? ???# #???????? | | ??????????????????? ???# #???????? | | ???????????????????##+#### #???????? | | ???????????????????# @ #???????? | | ?????????????????#"" Y/ ????? | | ?????????????????#"T # ?? | | ?????????????????#""[! # #? | | ?????????????????###!! #?######? | | ?????????????????? #???????? | | ?????????????????### #???????? | | ???????????????????# a#???????? | | ???????????????????# #???????? | | ???????????????????# """ #???????? | | ???????????????????+ """ #???????? | | ???????????????????# """ #???????? | | ???????????????????# ???" ???????? | | ??????????????????? ??? ???????? | | ????????????????????????? ???????? | | ????????????????????????? ???????? | | ???????????????????????????????????? | | ???????????????????????????????????? | | ???????????????????????????????????? | | ???????????????????????????????????? | | ???????????????????????????????????? | | ???????????????????????????????????? | | ???????????????????????????????????? | | ???????????????????????????????????? | | ???????????????????????????????????? | +----------------------------------------------------+ Best States ------------- Heat Dissipation 31 Energy Generation 19 Energy Capacity 430 Matter Stores 300 Matter Capacity 300 Sight Range 18 Terrain Scan Density 10 Armor Coverage 225 Core Shielding 20 Propulsion Shielding 33 Evasion (%) 57 Targeting Accuracy 8 Item Schematics ----------------- Hvy. Particle Cannon | -9/Materials | Scanalyzed Robot Schematics ------------------ None Fabricated ------------ Nothing Repaired ---------- Nothing Studied --------- None Alien Tech Used ----------------- None Achievements -------------- Bumper Bots DATA ERROR: Steam Global Achievement% For Emergencies Only Spot Them First Sprinter That Tickles There's More Where That Came From Challenges ------------ None Game ------ Seed BlanketIonLattice Manual? 0 Play Time 00:39:14 Cumulative 2.5 hours Start 2025.11.09 @ 20:16:57 End 2025.12.07 @ 22:31:41 Sessions 9 Manual Loads 0 Difficulty Rogue Special Mode None Game No. 4 Rogue 2 Adventurer 0 Explorer 2 Win Type - Total 0 Types 0/0/0/0/0/0/0/0/0/0 Lore% 0 Gallery% 7 Achievement% 6 Wizard Run 0 Options --------- Layout 1 ASCII 0 Keyboard 1 Movement Vi Keybinds 0 Fullscreen 1 Font 24/Smallcaps Map View 50x35 Zoom Use 0% Tactical HUD 0 Map Filters NONE Filters NONE Steam 1 RUN: d15ab49f-e9fb-4c74-b9cf-98cb111adde4